[Event "*** Titled Tuesday Blitz"]
[Site "Chess.com"]
[Date "2021.02.02"]
[Round "11"]
[White "MoreChessJulia"]
[Black "GMJustin"]
[Result "0-1"]
[WhiteElo "2148"]
[BlackElo "2286"]
[TimeControl "180+1"]
[EndTime "12:05:21 PST"]
[Termination "GMJustin won by resignation"]

1. d4 {[%clk 0:02:59.1]} 1... Nf6 {[%clk 0:01:31.2]} 2. Nc3 {[%clk 0:02:57.9]}
2... d5 {[%clk 0:01:30.6]} 3. Bg5 {[%clk 0:02:57.4]} 3... Nbd7 {[%clk
0:01:25.6]} 4. f4 {[%clk 0:02:56.5]} 4... h6 {[%clk 0:01:22.5]} 5. Bh4 {[%clk
0:02:55.1]} 5... c5 {[%clk 0:01:16.6]} 6. e3 {[%clk 0:02:54.9]} 6... e6 {[%clk
0:01:11.7]} 7. Nf3 {[%clk 0:02:53.2]} 7... Be7 {[%clk 0:01:08.9]} 8. Bb5 {[%clk
0:02:51.7]} 8... a6 {[%clk 0:01:07.5]} 9. Bxd7+ {[%clk 0:02:50.5]} 9... Bxd7
{[%clk 0:01:05.1]} 10. O-O {[%clk 0:02:50.9]} 10... c4 {[%clk 0:00:57.6]} 11.
Ne5 {[%clk 0:02:50.8]} 11... b5 {[%clk 0:00:51.3]} 12. Bxf6 {[%clk 0:02:50.4]}
12... Bxf6 {[%clk 0:00:50]} 13. Qh5 {[%clk 0:02:50]} 13... O-O {[%clk
0:00:38.5]} 14. a3 {[%clk 0:02:49.2]} 14... Be7 {[%clk 0:00:32]} 15. Rf3 {[%clk
0:02:48.8]} 15... b4 {[%clk 0:00:21.3]} 16. axb4 {[%clk 0:02:43.1]} 16... Bxb4
{[%clk 0:00:21.3]} 17. Rg3 {[%clk 0:02:43.1]} 17... Kh7 {[%clk 0:00:06.6]} 18.
Nxf7 {[%clk 0:02:40.4]} 18... Qf6 {[%clk 0:00:06.7]} 19. Ng5+ {[%clk 0:02:38.6]}
19... Kg8 {[%clk 0:00:04.9]} 20. Nf3 {[%clk 0:02:37.1]} 20... Bxc3 {[%clk
0:00:04.3]} 21. bxc3 {[%clk 0:02:37]} 21... a5 {[%clk 0:00:04.2]} 22. Ne5 {[%clk
0:02:36]} 22... Be8 {[%clk 0:00:04.4]} 23. Qe2 {[%clk 0:02:32.8]} 23... a4
{[%clk 0:00:04.2]} 24. Ra3 {[%clk 0:02:25.2]} 24... Qe7 {[%clk 0:00:03.6]} 25.
Ra2 {[%clk 0:02:24.2]} 25... a3 {[%clk 0:00:03.7]} 26. Ng6 {[%clk 0:02:22]}
26... Bxg6 {[%clk 0:00:03.2]} 27. Rxg6 {[%clk 0:02:21.9]} 27... Rfb8 {[%clk
0:00:03.2]} 28. Qd1 {[%clk 0:02:16.5]} 28... Rb2 {[%clk 0:00:03]} 29. Qa1 {[%clk
0:02:09.8]} 29... Rxa2 {[%clk 0:00:03.1]} 30. Qxa2 {[%clk 0:02:08.8]} 30... Qb7
{[%clk 0:00:03.8]} 31. Rxe6 {[%clk 0:02:05.4]} 31... Qb2 {[%clk 0:00:03.5]} 32.
Qxb2 {[%clk 0:02:03.8]} 32... axb2 {[%clk 0:00:04]} 33. Rb6 {[%clk 0:02:04]}
33... Ra1+ {[%clk 0:00:04.2]} 34. Kf2 {[%clk 0:02:04.6]} 34... b1=Q {[%clk
0:00:04.4]} 35. Rxb1 {[%clk 0:02:05.2]} 35... Rxb1 {[%clk 0:00:05]} 36. Ke2
{[%clk 0:02:03.7]} 36... Rc1 {[%clk 0:00:05.3]} 37. Kd2 {[%clk 0:02:03.8]} 37...
Rg1 {[%clk 0:00:05.6]} 38. g3 {[%clk 0:02:03.9]} 38... Rg2+ {[%clk 0:00:05.9]}
39. Kd1 {[%clk 0:02:04]} 39... Rxh2 {[%clk 0:00:06.2]} 40. g4 {[%clk 0:02:04.3]}
40... Kf7 {[%clk 0:00:06.6]} 41. g5 {[%clk 0:02:02.6]} 41... hxg5 {[%clk
0:00:06.5]} 42. fxg5 {[%clk 0:02:03.2]} 42... Kg6 {[%clk 0:00:07]} 0-1

[Event "*** Titled Tuesday Blitz"]
[Site "Chess.com"]
[Date "2021.02.02"]
[Round "11"]
[White "zmeeed67"]
[Black "LubovMarkelova"]
[Result "1-0"]
[WhiteElo "2372"]
[BlackElo "2233"]
[TimeControl "180+1"]
[EndTime "12:05:22 PST"]
[Termination "zmeeed67 won by resignation"]

1. d4 {[%clk 0:03:00.9]} 1... d5 {[%clk 0:02:59.8]} 2. c4 {[%clk 0:03:00.8]}
2... c6 {[%clk 0:03:00.2]} 3. Nc3 {[%clk 0:03:00.7]} 3... Nf6 {[%clk 0:03:00.1]}
4. e3 {[%clk 0:03:00.9]} 4... e6 {[%clk 0:02:58.7]} 5. Nf3 {[%clk 0:03:00.9]}
5... Nbd7 {[%clk 0:02:59.3]} 6. Bd3 {[%clk 0:03:01.2]} 6... dxc4 {[%clk
0:02:59.7]} 7. Bxc4 {[%clk 0:03:02.1]} 7... b5 {[%clk 0:02:59.6]} 8. Bd3 {[%clk
0:03:02]} 8... Bd6 {[%clk 0:03:00.2]} 9. O-O {[%clk 0:02:57.9]} 9... O-O {[%clk
0:03:00]} 10. e4 {[%clk 0:02:58.2]} 10... e5 {[%clk 0:03:00.3]} 11. Ne2 {[%clk
0:02:57.8]} 11... c5 {[%clk 0:02:56.2]} 12. d5 {[%clk 0:02:47.1]} 12... c4
{[%clk 0:02:55.8]} 13. Bc2 {[%clk 0:02:46.9]} 13... Nc5 {[%clk 0:02:49.7]} 14.
Ng3 {[%clk 0:02:46.9]} 14... a5 {[%clk 0:02:39.1]} 15. h3 {[%clk 0:02:46.9]}
15... b4 {[%clk 0:02:28]} 16. Re1 {[%clk 0:02:46.4]} 16... a4 {[%clk 0:02:25.7]}
17. Bg5 {[%clk 0:02:36.5]} 17... a3 {[%clk 0:01:32]} 18. bxa3 {[%clk 0:02:35.4]}
18... Rxa3 {[%clk 0:01:31.1]} 19. Nh5 {[%clk 0:02:24.9]} 19... Nd3 {[%clk
0:01:19.7]} 20. Bxf6 {[%clk 0:02:05.9]} 20... gxf6 {[%clk 0:01:19.1]} 21. Qd2
{[%clk 0:01:54.5]} 21... Nf4 {[%clk 0:00:59.2]} 22. Nxf4 {[%clk 0:01:49]} 22...
exf4 {[%clk 0:00:59.5]} 23. e5 {[%clk 0:01:42.6]} 23... fxe5 {[%clk 0:00:50]}
24. Nxe5 {[%clk 0:01:43.5]} 24... Bxe5 {[%clk 0:00:41.8]} 25. Rxe5 {[%clk
0:01:42.4]} 25... Qf6 {[%clk 0:00:41.8]} 26. Rae1 {[%clk 0:01:34.4]} 26... b3
{[%clk 0:00:18.4]} 27. axb3 {[%clk 0:01:33.5]} 27... cxb3 {[%clk 0:00:18.7]} 28.
Bb1 {[%clk 0:01:33.5]} 28... Ba6 {[%clk 0:00:17.5]} 29. Rf5 {[%clk 0:01:29.6]}
29... Qg7 {[%clk 0:00:16.3]} 30. Qxf4 {[%clk 0:01:29]} 30... b2 {[%clk
0:00:15.7]} 31. Rg5 {[%clk 0:01:27]} 1-0

[Event "*** Titled Tuesday Blitz"]
[Site "Chess.com"]
[Date "2021.02.02"]
[Round "11"]
[White "olksuna"]
[Black "enriquetejedor"]
[Result "1-0"]
[WhiteElo "2695"]
[BlackElo "2525"]
[TimeControl "180+1"]
[EndTime "12:05:24 PST"]
[Termination "olksuna won by resignation"]

1. e4 {[%clk 0:03:00.9]} 1... c5 {[%clk 0:02:51.8]} 2. Nf3 {[%clk 0:03:00.7]}
2... e6 {[%clk 0:02:51.6]} 3. d4 {[%clk 0:03:00.6]} 3... cxd4 {[%clk 0:02:52.5]}
4. Nxd4 {[%clk 0:03:01.5]} 4... Nf6 {[%clk 0:02:53.1]} 5. Nc3 {[%clk 0:03:01.5]}
5... Nc6 {[%clk 0:02:53.4]} 6. a3 {[%clk 0:03:00.8]} 6... d6 {[%clk 0:02:44.6]}
7. Be2 {[%clk 0:02:59.8]} 7... Be7 {[%clk 0:02:31]} 8. O-O {[%clk 0:02:56.8]}
8... O-O {[%clk 0:02:28.6]} 9. Be3 {[%clk 0:02:52.8]} 9... Bd7 {[%clk 0:02:26]}
10. f4 {[%clk 0:02:51.4]} 10... Rc8 {[%clk 0:02:00.2]} 11. Kh1 {[%clk
0:02:50.7]} 11... a6 {[%clk 0:01:43]} 12. Qe1 {[%clk 0:02:48.7]} 12... Nxd4
{[%clk 0:01:32.4]} 13. Bxd4 {[%clk 0:02:49.6]} 13... Bc6 {[%clk 0:01:33.3]} 14.
Qg3 {[%clk 0:02:49.1]} 14... Kh8 {[%clk 0:01:32]} 15. Bd3 {[%clk 0:02:48.9]}
15... d5 {[%clk 0:01:18.2]} 16. Bxf6 {[%clk 0:02:35.8]} 16... Bxf6 {[%clk
0:01:17.7]} 17. e5 {[%clk 0:02:36.2]} 17... Be7 {[%clk 0:01:16.6]} 18. f5 {[%clk
0:02:33]} 18... g6 {[%clk 0:01:15.4]} 19. f6 {[%clk 0:02:31.6]} 19... Bc5 {[%clk
0:01:15.5]} 20. Qh4 {[%clk 0:02:22.4]} 20... Rg8 {[%clk 0:01:00]} 21. Rf3 {[%clk
0:02:13.6]} 21... h5 {[%clk 0:00:13.1]} 22. Qg5 {[%clk 0:01:45.1]} 22... Rg7
{[%clk 0:00:02.1]} 23. fxg7+ {[%clk 0:01:43.1]} 23... Kxg7 {[%clk 0:00:03]} 24.
Qf4 {[%clk 0:01:38.6]} 24... Qe7 {[%clk 0:00:01.9]} 25. Raf1 {[%clk 0:01:37.5]}
25... Rf8 {[%clk 0:00:02.1]} 26. Ne2 {[%clk 0:01:24.6]} 26... f5 {[%clk
0:00:01.4]} 27. exf6+ {[%clk 0:01:23.3]} 27... Rxf6 {[%clk 0:00:01.8]} 28. Qxf6+
{[%clk 0:01:22.9]} 28... Qxf6 {[%clk 0:00:02.7]} 29. Rxf6 {[%clk 0:01:23.6]}
29... e5 {[%clk 0:00:02.4]} 1-0

[Event "*** Titled Tuesday Blitz"]
[Site "Chess.com"]
[Date "2021.02.02"]
[Round "11"]
[White "Milchone1"]
[Black "Sharpchess22"]
[Result "1/2-1/2"]
[WhiteElo "2525"]
[BlackElo "2678"]
[TimeControl "180+1"]
[EndTime "12:05:24 PST"]
[Termination "Game drawn by repetition"]

1. Nf3 {[%clk 0:03:00.9]} 1... Nf6 {[%clk 0:02:58.6]} 2. c4 {[%clk 0:03:00.8]}
2... g6 {[%clk 0:02:57.3]} 3. Nc3 {[%clk 0:03:00.8]} 3... Bg7 {[%clk 0:02:57.6]}
4. e4 {[%clk 0:03:01.2]} 4... d6 {[%clk 0:02:58]} 5. d4 {[%clk 0:03:01.7]} 5...
O-O {[%clk 0:02:57.6]} 6. h3 {[%clk 0:03:02.6]} 6... e5 {[%clk 0:02:55.7]} 7.
dxe5 {[%clk 0:03:03.5]} 7... dxe5 {[%clk 0:02:54.9]} 8. Be3 {[%clk 0:03:04.4]}
8... Nbd7 {[%clk 0:02:50.9]} 9. Be2 {[%clk 0:03:02.6]} 9... Re8 {[%clk
0:02:49.6]} 10. O-O {[%clk 0:03:02.4]} 10... c6 {[%clk 0:02:49.6]} 11. a3 {[%clk
0:03:00.2]} 11... Nh5 {[%clk 0:02:44.6]} 12. c5 {[%clk 0:02:59.3]} 12... Nf4
{[%clk 0:02:37.9]} 13. Re1 {[%clk 0:02:58.6]} 13... Qf6 {[%clk 0:02:35]} 14. Qd6
{[%clk 0:02:54.2]} 14... Ne6 {[%clk 0:02:32.3]} 15. b4 {[%clk 0:02:52.4]} 15...
Rd8 {[%clk 0:02:26.2]} 16. Rad1 {[%clk 0:02:38.8]} 16... Ndxc5 {[%clk
0:02:25.6]} 17. bxc5 {[%clk 0:02:11.4]} 17... Rxd6 {[%clk 0:02:25]} 18. cxd6
{[%clk 0:02:12.3]} 18... Bd7 {[%clk 0:02:24.8]} 19. Bc4 {[%clk 0:02:09.5]} 19...
h6 {[%clk 0:02:24.2]} 20. a4 {[%clk 0:02:06.8]} 20... b6 {[%clk 0:02:22]} 21.
Re2 {[%clk 0:01:58.7]} 21... Nf4 {[%clk 0:02:22]} 22. Bxf4 {[%clk 0:01:58.7]}
22... Qxf4 {[%clk 0:02:21.6]} 23. Ne1 {[%clk 0:01:47.2]} 23... Rd8 {[%clk
0:02:17.3]} 24. Nd3 {[%clk 0:01:45.9]} 24... Qg5 {[%clk 0:02:17.4]} 25. Re3
{[%clk 0:01:43.1]} 25... Be8 {[%clk 0:02:12.6]} 26. Nb4 {[%clk 0:01:37.7]} 26...
Bf8 {[%clk 0:02:01.5]} 27. Red3 {[%clk 0:01:36.6]} 27... Bd7 {[%clk 0:01:51.8]}
28. Rf3 {[%clk 0:01:23.1]} 28... Be6 {[%clk 0:01:50.6]} 29. Bxe6 {[%clk
0:01:22.4]} 29... fxe6 {[%clk 0:01:50.8]} 30. Nxc6 {[%clk 0:01:01.7]} 30... Rxd6
{[%clk 0:01:49]} 31. Rxf8+ {[%clk 0:01:01.4]} 31... Kxf8 {[%clk 0:01:48.9]} 32.
Rxd6 {[%clk 0:01:01.8]} 32... Qc1+ {[%clk 0:01:49]} 33. Nd1 {[%clk 0:01:02.2]}
33... Qc5 {[%clk 0:01:49.2]} 34. Rd8+ {[%clk 0:01:02]} 34... Kf7 {[%clk
0:01:49.7]} 35. Nxa7 {[%clk 0:00:55.5]} 35... Qc4 {[%clk 0:01:49.6]} 36. Ne3
{[%clk 0:00:36.7]} 36... Qxa4 {[%clk 0:01:46.9]} 37. Nc8 {[%clk 0:00:36]} 37...
b5 {[%clk 0:01:35]} 38. Ng4 {[%clk 0:00:35.6]} 38... Qa1+ {[%clk 0:01:34]} 39.
Kh2 {[%clk 0:00:36]} 39... h5 {[%clk 0:01:34.3]} 40. Rd7+ {[%clk 0:00:34]} 40...
Kf8 {[%clk 0:01:34.3]} 41. Rd8+ {[%clk 0:00:29.9]} 41... Kf7 {[%clk 0:01:32.9]}
42. Rd7+ {[%clk 0:00:29.8]} 42... Kf8 {[%clk 0:01:33.2]} 43. Rd8+ {[%clk
0:00:28.9]} 43... Kf7 {[%clk 0:01:33.5]} 1/2-1/2

[Event "*** Titled Tuesday Blitz"]
[Site "Chess.com"]
[Date "2021.02.02"]
[Round "11"]
[White "GiorgianBarbosa"]
[Black "remi04"]
[Result "0-1"]
[WhiteElo "2489"]
[BlackElo "2619"]
[TimeControl "180+1"]
[EndTime "12:05:24 PST"]
[Termination "remi04 won by resignation"]

1. d4 {[%clk 0:03:00.9]} 1... Nf6 {[%clk 0:02:58.7]} 2. Nf3 {[%clk 0:03:01.3]}
2... e6 {[%clk 0:02:58.2]} 3. c4 {[%clk 0:03:01.4]} 3... d5 {[%clk 0:02:58.2]}
4. Nc3 {[%clk 0:02:59.5]} 4... c6 {[%clk 0:02:58.4]} 5. Bg5 {[%clk 0:02:59.3]}
5... Nbd7 {[%clk 0:02:58.5]} 6. e3 {[%clk 0:02:59.6]} 6... Qa5 {[%clk
0:02:58.1]} 7. Nd2 {[%clk 0:02:55.5]} 7... Bb4 {[%clk 0:02:58.1]} 8. Qc2 {[%clk
0:02:29.2]} 8... O-O {[%clk 0:02:56.8]} 9. Bxf6 {[%clk 0:02:23.3]} 9... Nxf6
{[%clk 0:02:56.3]} 10. Bd3 {[%clk 0:02:23.9]} 10... c5 {[%clk 0:02:45.4]} 11.
Nb3 {[%clk 0:02:14]} 11... Qc7 {[%clk 0:02:34.7]} 12. dxc5 {[%clk 0:02:00.7]}
12... dxc4 {[%clk 0:02:29.7]} 13. Bxc4 {[%clk 0:02:00.1]} 13... Bxc5 {[%clk
0:02:28.9]} 14. Nxc5 {[%clk 0:01:37.2]} 14... Qxc5 {[%clk 0:02:28.5]} 15. Be2
{[%clk 0:01:37.5]} 15... b6 {[%clk 0:02:24.8]} 16. O-O {[%clk 0:01:36.3]} 16...
Bb7 {[%clk 0:02:24.6]} 17. Rac1 {[%clk 0:01:32.7]} 17... Rac8 {[%clk 0:02:19.5]}
18. Rfd1 {[%clk 0:01:28.2]} 18... Qg5 {[%clk 0:02:17.2]} 19. Bf1 {[%clk
0:01:22]} 19... h5 {[%clk 0:02:06.7]} 20. Qb3 {[%clk 0:01:12]} 20... h4 {[%clk
0:02:05.3]} 21. Qb5 {[%clk 0:01:11.8]} 21... Rc5 {[%clk 0:02:03.8]} 22. Qe2
{[%clk 0:01:02.6]} 22... Bxg2 {[%clk 0:01:49.8]} 23. Bxg2 {[%clk 0:00:59.8]}
23... h3 {[%clk 0:01:49.9]} 24. f4 {[%clk 0:01:00.4]} 24... Qg6 {[%clk
0:01:47.9]} 25. Na4 {[%clk 0:00:40.4]} 25... Rh5 {[%clk 0:01:41.7]} 26. Rc2
{[%clk 0:00:21.1]} 26... hxg2 {[%clk 0:01:32.1]} 27. Qxg2 {[%clk 0:00:14.2]}
27... Ng4 {[%clk 0:01:31.9]} 28. h3 {[%clk 0:00:01.2]} 28... Nxe3 {[%clk
0:01:30.5]} 29. Qxg6 {[%clk 0:00:02.1]} 29... fxg6 {[%clk 0:01:31]} 30. Rcd2
{[%clk 0:00:01.6]} 30... Nxd1 {[%clk 0:01:30.4]} 31. Rxd1 {[%clk 0:00:02.5]}
31... Rxf4 {[%clk 0:01:30.9]} 32. Nc3 {[%clk 0:00:03.4]} 32... Rxh3 {[%clk
0:01:30.6]} 0-1

[Event "*** Titled Tuesday Blitz"]
[Site "Chess.com"]
[Date "2021.02.02"]
[Round "11"]
[White "noblerone"]
[Black "sokidze"]
[Result "0-1"]
[WhiteElo "2413"]
[BlackElo "2526"]
[TimeControl "180+1"]
[EndTime "12:05:30 PST"]
[Termination "sokidze won by resignation"]

1. d4 {[%clk 0:03:00.9]} 1... Nf6 {[%clk 0:02:59.9]} 2. Nf3 {[%clk 0:03:00.7]}
2... e6 {[%clk 0:03:00]} 3. Bg5 {[%clk 0:03:00.8]} 3... h6 {[%clk 0:02:57.9]} 4.
Bh4 {[%clk 0:03:00.7]} 4... c5 {[%clk 0:02:58]} 5. e3 {[%clk 0:02:51.9]} 5... d5
{[%clk 0:02:58]} 6. c3 {[%clk 0:02:50]} 6... Bd6 {[%clk 0:02:58.3]} 7. Nbd2
{[%clk 0:02:48.7]} 7... O-O {[%clk 0:02:58.6]} 8. Bd3 {[%clk 0:02:48.7]} 8...
Nbd7 {[%clk 0:02:56.3]} 9. O-O {[%clk 0:02:40.6]} 9... b6 {[%clk 0:02:56.3]} 10.
a4 {[%clk 0:02:32.2]} 10... a6 {[%clk 0:02:52.7]} 11. Qe2 {[%clk 0:02:29.6]}
11... Bb7 {[%clk 0:02:51.5]} 12. e4 {[%clk 0:02:19.3]} 12... dxe4 {[%clk
0:02:51.5]} 13. Nxe4 {[%clk 0:02:18.8]} 13... Be7 {[%clk 0:02:51.7]} 14. Nxf6+
{[%clk 0:02:05.5]} 14... Bxf6 {[%clk 0:02:38.1]} 15. Bxf6 {[%clk 0:01:59.9]}
15... Qxf6 {[%clk 0:02:37.9]} 16. Be4 {[%clk 0:01:50.4]} 16... Bxe4 {[%clk
0:02:32.9]} 17. Qxe4 {[%clk 0:01:51.3]} 17... cxd4 {[%clk 0:02:33.4]} 18. Nxd4
{[%clk 0:01:44.2]} 18... Nc5 {[%clk 0:02:32.8]} 19. Qc6 {[%clk 0:01:38.1]} 19...
Rab8 {[%clk 0:02:09.3]} 20. b4 {[%clk 0:01:24.4]} 20... Rfc8 {[%clk 0:02:00.5]}
21. Qf3 {[%clk 0:00:48.7]} 21... Qxf3 {[%clk 0:01:56.3]} 22. Nxf3 {[%clk
0:00:49.6]} 22... Ne4 {[%clk 0:01:53.7]} 23. b5 {[%clk 0:00:42.2]} 23... axb5
{[%clk 0:01:47.1]} 24. axb5 {[%clk 0:00:43.1]} 24... Nxc3 {[%clk 0:01:47.7]} 25.
g3 {[%clk 0:00:42.9]} 25... Nxb5 {[%clk 0:01:46.4]} 26. Rab1 {[%clk 0:00:41.4]}
26... Nc3 {[%clk 0:01:46.7]} 27. Rb3 {[%clk 0:00:41.9]} 27... b5 {[%clk
0:01:46.4]} 28. Kg2 {[%clk 0:00:40.9]} 28... b4 {[%clk 0:01:46.2]} 29. Rc1
{[%clk 0:00:41]} 29... Nd5 {[%clk 0:01:45.2]} 30. Rcb1 {[%clk 0:00:41]} 30...
Ra8 {[%clk 0:01:40.9]} 31. Ne5 {[%clk 0:00:36.7]} 31... Ra2 {[%clk 0:01:39.2]}
32. Nd3 {[%clk 0:00:36]} 32... Rcc2 {[%clk 0:01:33.7]} 33. h4 {[%clk 0:00:28]}
33... Rd2 {[%clk 0:01:21.6]} 34. Re1 {[%clk 0:00:23.7]} 34... Ra3 {[%clk
0:01:16.1]} 35. Reb1 {[%clk 0:00:18.9]} 35... Rxd3 {[%clk 0:01:15.2]} 0-1

[Event "*** Titled Tuesday Blitz"]
[Site "Chess.com"]
[Date "2021.02.02"]
[Round "11"]
[White "Artyom_ChessMate"]
[Black "MrrRefrao"]
[Result "1-0"]
[WhiteElo "2559"]
[BlackElo "2386"]
[TimeControl "180+1"]
[EndTime "12:05:30 PST"]
[Termination "Artyom_ChessMate won by resignation"]

1. e4 {[%clk 0:03:00.9]} 1... c5 {[%clk 0:02:55.8]} 2. Nc3 {[%clk 0:03:00]} 2...
d6 {[%clk 0:02:54.5]} 3. f4 {[%clk 0:02:59.6]} 3... Nf6 {[%clk 0:02:50.4]} 4.
Nf3 {[%clk 0:03:00.5]} 4... g6 {[%clk 0:02:40.2]} 5. Bc4 {[%clk 0:02:59.8]} 5...
Nc6 {[%clk 0:02:38.3]} 6. O-O {[%clk 0:02:59.4]} 6... Bg4 {[%clk 0:02:36.2]} 7.
e5 {[%clk 0:02:51.3]} 7... d5 {[%clk 0:02:20.2]} 8. Bb5 {[%clk 0:02:42.4]} 8...
Nh5 {[%clk 0:02:12.8]} 9. h3 {[%clk 0:02:36.2]} 9... Bxf3 {[%clk 0:02:09.2]} 10.
Qxf3 {[%clk 0:02:37.1]} 10... e6 {[%clk 0:02:06.2]} 11. f5 {[%clk 0:02:22.7]}
11... Qc7 {[%clk 0:01:44.3]} 12. fxe6 {[%clk 0:02:11.7]} 12... fxe6 {[%clk
0:01:45.2]} 13. g4 {[%clk 0:02:11.3]} 13... Ng7 {[%clk 0:01:44.2]} 14. Qf6
{[%clk 0:02:09.6]} 14... c4 {[%clk 0:01:14.7]} 15. d4 {[%clk 0:02:01.9]} 15...
cxd3 {[%clk 0:01:03.5]} 16. Be3 {[%clk 0:01:50.2]} 16... d2 {[%clk 0:00:31.5]}
17. Ne2 {[%clk 0:01:36.8]} 17... Bb4 {[%clk 0:00:17.9]} 18. Bh6 {[%clk
0:01:29.3]} 18... Qb6+ {[%clk 0:00:14.5]} 19. Kh1 {[%clk 0:01:17.1]} 19... Qxb5
{[%clk 0:00:09.7]} 20. Nc3 {[%clk 0:01:04.1]} 20... Qc5 {[%clk 0:00:07.7]} 21.
Bxg7 {[%clk 0:01:00.9]} 21... Rf8 {[%clk 0:00:02.2]} 22. Qxe6+ {[%clk
0:01:00.8]} 22... Kd8 {[%clk 0:00:02.1]} 1-0

[Event "*** Titled Tuesday Blitz"]
[Site "Chess.com"]
[Date "2021.02.02"]
[Round "11"]
[White "BL4D3RUNN3R"]
[Black "publicaccountcze"]
[Result "0-1"]
[WhiteElo "2213"]
[BlackElo "2342"]
[TimeControl "180+1"]
[EndTime "12:05:36 PST"]
[Termination "publicaccountcze won by resignation"]

1. Nf3 {[%clk 0:03:00.9]} 1... d5 {[%clk 0:02:58.9]} 2. c4 {[%clk 0:03:00.5]}
2... e6 {[%clk 0:02:56.7]} 3. b3 {[%clk 0:02:59.7]} 3... Nf6 {[%clk 0:02:55.4]}
4. Bb2 {[%clk 0:02:59.6]} 4... dxc4 {[%clk 0:02:53.1]} 5. bxc4 {[%clk
0:02:58.3]} 5... c5 {[%clk 0:02:52.9]} 6. g3 {[%clk 0:02:57.4]} 6... Nc6 {[%clk
0:02:51.5]} 7. Bg2 {[%clk 0:02:56]} 7... Be7 {[%clk 0:02:51.2]} 8. O-O {[%clk
0:02:55]} 8... O-O {[%clk 0:02:50.5]} 9. e3 {[%clk 0:02:54.1]} 9... Qc7 {[%clk
0:02:49.4]} 10. Nc3 {[%clk 0:02:51.6]} 10... b6 {[%clk 0:02:48.6]} 11. Nb5
{[%clk 0:02:42.6]} 11... Qb7 {[%clk 0:02:42.1]} 12. Ne5 {[%clk 0:02:30.5]} 12...
Bd7 {[%clk 0:02:40.6]} 13. Nxd7 {[%clk 0:02:19]} 13... Qxd7 {[%clk 0:02:38.3]}
14. d4 {[%clk 0:02:13.2]} 14... Rac8 {[%clk 0:02:13.3]} 15. dxc5 {[%clk
0:02:08.4]} 15... Qxd1 {[%clk 0:02:09.2]} 16. Rfxd1 {[%clk 0:02:05.2]} 16...
Bxc5 {[%clk 0:02:05.3]} 17. Bxf6 {[%clk 0:01:57]} 17... gxf6 {[%clk 0:02:03.6]}
18. Bxc6 {[%clk 0:01:50.1]} 18... Rxc6 {[%clk 0:01:53.2]} 19. Nxa7 {[%clk
0:01:48.8]} 19... Rc7 {[%clk 0:01:48.7]} 20. Nb5 {[%clk 0:01:47.1]} 20... Rcc8
{[%clk 0:01:41.1]} 21. Rd7 {[%clk 0:01:38.2]} 21... Rfd8 {[%clk 0:01:33]} 22.
Rad1 {[%clk 0:01:35.3]} 22... Rxd7 {[%clk 0:01:29.5]} 23. Rxd7 {[%clk
0:01:33.5]} 23... Ra8 {[%clk 0:01:28.9]} 24. Nc3 {[%clk 0:01:09.2]} 24... f5
{[%clk 0:01:17.6]} 25. Rb7 {[%clk 0:00:59.4]} 25... Ra3 {[%clk 0:01:13.4]} 26.
Nb5 {[%clk 0:00:48]} 26... Rxa2 {[%clk 0:01:11.8]} 27. Nd4 {[%clk 0:00:41.3]}
27... Ra4 {[%clk 0:01:07]} 28. Nc6 {[%clk 0:00:32.9]} 28... Rxc4 {[%clk
0:01:04.3]} 29. Rxf7 {[%clk 0:00:28.7]} 29... Rc1+ {[%clk 0:01:00.3]} 0-1

[Event "*** Titled Tuesday Blitz"]
[Site "Chess.com"]
[Date "2021.02.02"]
[Round "11"]
[White "Chopper1905"]
[Black "AlexeiShirov"]
[Result "1-0"]
[WhiteElo "2944"]
[BlackElo "2844"]
[TimeControl "180+1"]
[EndTime "12:05:39 PST"]
[Termination "Chopper1905 won by resignation"]

1. d4 {[%clk 0:03:00.9]} 1... d5 {[%clk 0:02:58.8]} 2. c4 {[%clk 0:03:01.3]}
2... c6 {[%clk 0:02:59]} 3. cxd5 {[%clk 0:03:01.8]} 3... cxd5 {[%clk 0:02:57.9]}
4. Bf4 {[%clk 0:03:02.5]} 4... Nc6 {[%clk 0:02:57.3]} 5. e3 {[%clk 0:03:02.3]}
5... Nf6 {[%clk 0:02:56.9]} 6. Nc3 {[%clk 0:03:02.6]} 6... a6 {[%clk 0:02:55.3]}
7. Be2 {[%clk 0:03:00]} 7... b5 {[%clk 0:02:48.2]} 8. a4 {[%clk 0:02:37.9]} 8...
b4 {[%clk 0:02:46.2]} 9. Na2 {[%clk 0:02:38.2]} 9... e6 {[%clk 0:02:30.6]} 10.
Nf3 {[%clk 0:02:37.4]} 10... Be7 {[%clk 0:02:28.9]} 11. Nc1 {[%clk 0:02:35.8]}
11... Na5 {[%clk 0:02:24.6]} 12. Nd3 {[%clk 0:02:28.9]} 12... O-O {[%clk
0:02:22.9]} 13. Rc1 {[%clk 0:02:24.5]} 13... Ra7 {[%clk 0:02:19.4]} 14. O-O
{[%clk 0:02:14.6]} 14... Bd7 {[%clk 0:02:18.6]} 15. Nc5 {[%clk 0:02:12]} 15...
Bxc5 {[%clk 0:02:10.1]} 16. Rxc5 {[%clk 0:02:00.6]} 16... Ne4 {[%clk 0:02:06.6]}
17. Rc1 {[%clk 0:02:00.3]} 17... b3 {[%clk 0:02:01]} 18. Nd2 {[%clk 0:01:53.6]}
18... Bxa4 {[%clk 0:01:55.6]} 19. Nxe4 {[%clk 0:01:46.7]} 19... dxe4 {[%clk
0:01:54.4]} 20. Rc5 {[%clk 0:01:40.4]} 20... Qb6 {[%clk 0:01:43.9]} 21. Qd2
{[%clk 0:01:27]} 21... Bb5 {[%clk 0:01:40.5]} 22. Bxb5 {[%clk 0:01:24.4]} 22...
axb5 {[%clk 0:01:39.5]} 23. Qb4 {[%clk 0:01:21.5]} 23... Rb7 {[%clk 0:01:21.7]}
24. Rfc1 {[%clk 0:01:21.2]} 24... Nc4 {[%clk 0:01:13]} 25. Qxb3 {[%clk
0:01:20.8]} 25... f6 {[%clk 0:00:57.9]} 26. Qb4 {[%clk 0:01:12.3]} 26... g5
{[%clk 0:00:51.7]} 27. Bg3 {[%clk 0:01:10.6]} 27... h5 {[%clk 0:00:32.2]} 28. h4
{[%clk 0:01:10.5]} 28... gxh4 {[%clk 0:00:28.4]} 29. Bxh4 {[%clk 0:01:08.8]}
29... Qa6 {[%clk 0:00:24.6]} 30. b3 {[%clk 0:01:02.9]} 30... Nb6 {[%clk
0:00:23.8]} 31. Rc6 {[%clk 0:00:56.8]} 31... Nd5 {[%clk 0:00:23.2]} 32. Qxf8+
{[%clk 0:00:56.1]} 1-0